[Event "Titled Tuesday Blitz April 4 Early 2023"]
[White "Goncalves, Davi Sulzbacher"]
[Black "Orujov2008"]
[WhiteFideId "2154510"]
[WhiteElo "2182"]
[BlackElo "2282"]
[Result "0-1"]
[Round "07"]
[TimeControl "180+2"]
[Date "2023.04.04"]
[WhiteClock "0:00:04"]
[BlackClock "0:00:06"]

1. Nf3 {[%clk 0:02:25]}  Nf6 {[%clk 0:02:58]} 2. e3 {[%clk 0:02:25]}  d5 {[%clk 0:02:58]} 3. d4 {[%clk 0:02:25]}  c5 {[%clk 0:02:59]} 4. b3 {[%clk 0:02:22]}  Nc6 {[%clk 0:02:59]} 5. Bb2 {[%clk 0:02:22]}  cxd4 {[%clk 0:02:59]} 6. Nxd4 {[%clk 0:02:21]}  Bg4 {[%clk 0:02:52]} 7. Be2 {[%clk 0:02:19]}  Bxe2 {[%clk 0:02:52]} 8. Qxe2 {[%clk 0:02:20]}  e6 {[%clk 0:02:50]} 9. O-O {[%clk 0:02:20]}  Bd6 {[%clk 0:02:51]} 10. Rd1 {[%clk 0:02:17]}  O-O {[%clk 0:02:51]} 11. c4 {[%clk 0:02:15]}  Nxd4 {[%clk 0:02:26]} 12. Bxd4 {[%clk 0:02:11]}  dxc4 {[%clk 0:02:09]} 13. bxc4 {[%clk 0:01:42]}  Qe7 {[%clk 0:02:04]} 14. Nc3 {[%clk 0:01:30]}  Rfd8 {[%clk 0:02:00]} 15. Qf3 {[%clk 0:01:27]}  b6 {[%clk 0:01:56]} 16. Nb5 {[%clk 0:01:05]}  Bc5 {[%clk 0:01:42]} 17. Bxf6 {[%clk 0:00:57]}  Qxf6 {[%clk 0:01:43]} 18. Qxf6 {[%clk 0:00:56]}  gxf6 {[%clk 0:01:44]} 19. Rxd8+ {[%clk 0:00:54]}  Rxd8 {[%clk 0:01:41]} 20. Nxa7 {[%clk 0:00:53]}  Rd2 {[%clk 0:01:39]} 21. a4 {[%clk 0:00:37]}  Rc2 {[%clk 0:01:38]} 22. g3 {[%clk 0:00:27]}  Rxc4 {[%clk 0:01:37]} 23. a5 {[%clk 0:00:26]}  bxa5 {[%clk 0:01:25]} 24. Rxa5 {[%clk 0:00:27]}  Rc1+ {[%clk 0:01:21]} 25. Kg2 {[%clk 0:00:27]}  Rc2 {[%clk 0:01:22]} 26. Kf3 {[%clk 0:00:26]}  f5 {[%clk 0:01:21]} 27. Nc6 {[%clk 0:00:18]}  Kg7 {[%clk 0:01:20]} 28. Ne5 {[%clk 0:00:15]}  Bd6 {[%clk 0:01:15]} 29. Nd3 {[%clk 0:00:14]}  Kf6 {[%clk 0:01:13]} 30. Nf4 {[%clk 0:00:10]}  Bb4 {[%clk 0:01:12]} 31. Ra6 {[%clk 0:00:09]}  Be1 {[%clk 0:01:11]} 32. Nh3 {[%clk 0:00:08]}  h6 {[%clk 0:01:07]} 33. Ra4 {[%clk 0:00:09]}  h5 {[%clk 0:00:59]} 34. Rh4 {[%clk 0:00:08]}  Kg6 {[%clk 0:00:54]} 35. Kg2 {[%clk 0:00:08]}  e5 {[%clk 0:00:52]} 36. Kf1 {[%clk 0:00:07]}  Ba5 {[%clk 0:00:49]} 37. Ra4 {[%clk 0:00:08]}  Bb6 {[%clk 0:00:48]} 38. Ra6 {[%clk 0:00:08]}  Rb2 {[%clk 0:00:46]} 39. Ng1 {[%clk 0:00:08]}  f6 {[%clk 0:00:46]} 40. Nf3 {[%clk 0:00:08]}  f4 {[%clk 0:00:39]} 41. gxf4 {[%clk 0:00:04]}  exf4 {[%clk 0:00:40]} 42. Ne1 {[%clk 0:00:02]}  fxe3 {[%clk 0:00:39]} 43. fxe3 {[%clk 0:00:02]}  Bxe3 {[%clk 0:00:40]} 44. Nd3 {[%clk 0:00:02]}  Rxh2 {[%clk 0:00:39]} 45. Nb4 {[%clk 0:00:01]}  Rf2+ {[%clk 0:00:35]} 46. Ke1 {[%clk 0:00:01]}  h4 {[%clk 0:00:36]} 47. Nd5 {[%clk 0:00:02]}  Bd4 {[%clk 0:00:22]} 48. Ra4 {[%clk 0:00:02]}  Bc5 {[%clk 0:00:12]} 49. Rc4 {[%clk 0:00:02]}  Ba7 {[%clk 0:00:12]} 50. Rxh4 {[%clk 0:00:02]}  Ra2 {[%clk 0:00:09]} 51. Rg4+ {[%clk 0:00:02]}  Kf5 {[%clk 0:00:08]} 52. Rg7 {[%clk 0:00:03]}  Ke5 {[%clk 0:00:07]} 53. Ne7 {[%clk 0:00:03]}  Ra1+ {[%clk 0:00:05]} 54. Ke2 {[%clk 0:00:02]}  Bc5 {[%clk 0:00:05]} 55. Nc6+ {[%clk 0:00:02]}  Kf5 {[%clk 0:00:04]} 56. Ne7+ {[%clk 0:00:02]}  Ke6 {[%clk 0:00:04]} 57. Ng6 {[%clk 0:00:01]}  Ra2+ {[%clk 0:00:05]} 58. Kf3 {[%clk 0:00:01]}  Ra1 {[%clk 0:00:04]} 59. Kg3 {[%clk 0:00:01]}  Rg1+ {[%clk 0:00:04]} 60. Kh3 {[%clk 0:00:02]}  Bd4 {[%clk 0:00:03]} 61. Nf4+ {[%clk 0:00:02]}  Kf5 {[%clk 0:00:03]} 62. Rxg1 {[%clk 0:00:03]}  Bxg1 {[%clk 0:00:04]} 63. Ng2 {[%clk 0:00:04]}  Bf2 {[%clk 0:00:04]} 64. Kh2 {[%clk 0:00:04]}  Ke4 {[%clk 0:00:04]} 65. Kh3 {[%clk 0:00:03]}  Kf3 {[%clk 0:00:05]} 66. Kh2 {[%clk 0:00:03]}  f5 {[%clk 0:00:05]} 67. Kh3 {[%clk 0:00:03]}  Bg3 {[%clk 0:00:03]} 68. Ne3 {[%clk 0:00:02]}  Kxe3 {[%clk 0:00:04]} 69. Kg2 {[%clk 0:00:02]}  f4 {[%clk 0:00:04]} 70. Kf1 {[%clk 0:00:03]}  f3 {[%clk 0:00:05]} 71. Kg1 {[%clk 0:00:03]}  Bb8 {[%clk 0:00:05]} 72. Kf1 {[%clk 0:00:04]}  f2 {[%clk 0:00:05]} 73. Kg2 {[%clk 0:00:04]}  Ke2 {[%clk 0:00:06]} 0-1


[Site "https://www.chess.com"]

[Event "Titled Tuesday Blitz April 4 Early 2023"]
[White "Makhmudov, Shukhrat"]
[Black "Deuer, Marius"]
[WhiteFideId "14200775"]
[BlackFideId "16236432"]
[WhiteElo "2135"]
[BlackElo "2163"]
[Result "0-1"]
[Round "07"]
[TimeControl "180+2"]
[Date "2023.04.04"]
[WhiteClock "0:01:58"]
[BlackClock "0:01:51"]

1. e4 {[%clk 0:03:00]}  g6 {[%clk 0:03:00]} 2. d4 {[%clk 0:03:00]}  Bg7 {[%clk 0:02:58]} 3. Nc3 {[%clk 0:03:01]}  d6 {[%clk 0:02:59]} 4. Be3 {[%clk 0:03:01]}  Nf6 {[%clk 0:02:59]} 5. f3 {[%clk 0:03:01]}  O-O {[%clk 0:02:59]} 6. Qd2 {[%clk 0:03:01]}  c5 {[%clk 0:03:00]} 7. Nge2 {[%clk 0:03:01]}  Nc6 {[%clk 0:02:58]} 8. dxc5 {[%clk 0:03:01]}  d5 {[%clk 0:02:50]} 9. exd5 {[%clk 0:03:00]}  Nb4 {[%clk 0:02:49]} 10. d6 {[%clk 0:02:51]}  Bf5 {[%clk 0:02:28]} 11. Nd4 {[%clk 0:02:51]}  exd6 {[%clk 0:02:23]} 12. Nxf5 {[%clk 0:02:51]}  gxf5 {[%clk 0:02:24]} 13. cxd6 {[%clk 0:02:50]}  Re8 {[%clk 0:02:25]} 14. O-O-O {[%clk 0:02:49]}  Qa5 {[%clk 0:02:18]} 15. a3 {[%clk 0:02:35]}  Rac8 {[%clk 0:02:09]} 16. Bh6 {[%clk 0:02:11]}  Rxc3 {[%clk 0:02:00]} 17. Qxc3 {[%clk 0:02:00]}  Na2+ {[%clk 0:02:00]} 18. Kb1 {[%clk 0:01:59]}  Nxc3+ {[%clk 0:02:00]} 19. bxc3 {[%clk 0:02:00]}  Bxh6 {[%clk 0:01:59]} 20. d7 {[%clk 0:01:59]}  Rd8 {[%clk 0:01:58]} 21. Bc4 {[%clk 0:01:58]}  Qxc3 {[%clk 0:01:55]} 22. Bb3 {[%clk 0:01:58]}  Bg7 {[%clk 0:01:54]} 23. Rhe1 {[%clk 0:01:58]}  Ne4 {[%clk 0:01:51]} 0-1


[Site "https://www.chess.com"]

[Event "Titled Tuesday Blitz April 4 Early 2023"]
[White "Vemparala, Nikash"]
[Black "Okike, David"]
[WhiteFideId "30960967"]
[BlackFideId "8500134"]
[WhiteElo "2023"]
[BlackElo "2232"]
[Result "1-0"]
[Round "07"]
[TimeControl "180+2"]
[Date "2023.04.04"]
[WhiteClock "0:00:13"]
[BlackClock "0:00:23"]

1. e4 {[%clk 0:03:00]}  c5 {[%clk 0:02:59]} 2. Nf3 {[%clk 0:03:00]}  Nc6 {[%clk 0:02:59]} 3. Bb5 {[%clk 0:02:59]}  g6 {[%clk 0:02:59]} 4. Bxc6 {[%clk 0:02:59]}  bxc6 {[%clk 0:03:00]} 5. O-O {[%clk 0:02:59]}  Bg7 {[%clk 0:03:00]} 6. d3 {[%clk 0:02:54]}  d6 {[%clk 0:02:59]} 7. h3 {[%clk 0:02:53]}  Nh6 {[%clk 0:02:58]} 8. Nc3 {[%clk 0:02:51]}  O-O {[%clk 0:02:57]} 9. Be3 {[%clk 0:02:47]}  f5 {[%clk 0:02:56]} 10. Qd2 {[%clk 0:02:45]}  Nf7 {[%clk 0:02:56]} 11. d4 {[%clk 0:02:35]}  cxd4 {[%clk 0:02:51]} 12. Nxd4 {[%clk 0:02:36]}  Qc7 {[%clk 0:02:47]} 13. exf5 {[%clk 0:02:34]}  gxf5 {[%clk 0:02:45]} 14. Rfe1 {[%clk 0:02:01]}  e5 {[%clk 0:02:45]} 15. Nb3 {[%clk 0:01:57]}  f4 {[%clk 0:02:45]} 16. Bxf4 {[%clk 0:01:53]}  exf4 {[%clk 0:02:45]} 17. Qxf4 {[%clk 0:01:52]}  Qb6 {[%clk 0:02:36]} 18. Ne4 {[%clk 0:01:48]}  Ne5 {[%clk 0:02:30]} 19. Qg3 {[%clk 0:01:27]}  d5 {[%clk 0:02:03]} 20. Nec5 {[%clk 0:01:27]}  Ng6 {[%clk 0:01:55]} 21. h4 {[%clk 0:01:21]}  Qb8 {[%clk 0:01:40]} 22. Qg5 {[%clk 0:00:55]}  Qf4 {[%clk 0:01:37]} 23. Qxf4 {[%clk 0:00:47]}  Nxf4 {[%clk 0:01:37]} 24. Re7 {[%clk 0:00:41]}  Bxb2 {[%clk 0:01:24]} 25. Rae1 {[%clk 0:00:35]}  Bf6 {[%clk 0:01:24]} 26. Rc7 {[%clk 0:00:30]}  Ng6 {[%clk 0:01:06]} 27. h5 {[%clk 0:00:29]}  Ne5 {[%clk 0:01:05]} 28. h6 {[%clk 0:00:25]}  Bf5 {[%clk 0:01:00]} 29. Nd4 {[%clk 0:00:24]}  Bg6 {[%clk 0:00:55]} 30. Nxc6 {[%clk 0:00:23]}  Nxc6 {[%clk 0:00:54]} 31. Rxc6 {[%clk 0:00:24]}  Rac8 {[%clk 0:00:52]} 32. Ree6 {[%clk 0:00:19]}  Rxc6 {[%clk 0:00:50]} 33. Rxc6 {[%clk 0:00:20]}  Bxc2 {[%clk 0:00:46]} 34. Nd7 {[%clk 0:00:20]}  Ba4 {[%clk 0:00:43]} 35. Nxf6+ {[%clk 0:00:19]}  Kf7 {[%clk 0:00:44]} 36. Ra6 {[%clk 0:00:18]}  Bb5 {[%clk 0:00:43]} 37. Rd6 {[%clk 0:00:17]}  Bc4 {[%clk 0:00:40]} 38. Nxh7 {[%clk 0:00:17]}  Rh8 {[%clk 0:00:36]} 39. Ng5+ {[%clk 0:00:16]}  Ke7 {[%clk 0:00:36]} 40. Rg6 {[%clk 0:00:14]}  Bxa2 {[%clk 0:00:35]} 41. h7 {[%clk 0:00:14]}  Bb1 {[%clk 0:00:35]} 42. Rg8 {[%clk 0:00:13]}  Rxh7 {[%clk 0:00:32]} 43. Nxh7 {[%clk 0:00:13]}  d4 {[%clk 0:00:32]} 44. Rg3 {[%clk 0:00:11]}  Bxh7 {[%clk 0:00:30]} 45. Ra3 {[%clk 0:00:11]}  d3 {[%clk 0:00:27]} 46. Rxa7+ {[%clk 0:00:11]}  Kd8 {[%clk 0:00:28]} 47. Kf1 {[%clk 0:00:10]}  Be4 {[%clk 0:00:26]} 48. f3 {[%clk 0:00:09]}  Bf5 {[%clk 0:00:24]} 49. Ke1 {[%clk 0:00:09]}  Kc8 {[%clk 0:00:23]} 50. Kd2 {[%clk 0:00:10]}  Kb8 {[%clk 0:00:23]} 51. Rg7 {[%clk 0:00:09]}  Kc8 {[%clk 0:00:23]} 52. g4 {[%clk 0:00:09]}  Be6 {[%clk 0:00:21]} 53. Kxd3 {[%clk 0:00:09]}  Kd8 {[%clk 0:00:21]} 54. Kd4 {[%clk 0:00:09]}  Ke8 {[%clk 0:00:21]} 55. Ke5 {[%clk 0:00:10]}  Bf7 {[%clk 0:00:20]} 56. Rxf7 {[%clk 0:00:10]}  Kxf7 {[%clk 0:00:20]} 57. Kf5 {[%clk 0:00:11]}  Kg7 {[%clk 0:00:20]} 58. f4 {[%clk 0:00:11]}  Kh7 {[%clk 0:00:21]} 59. g5 {[%clk 0:00:12]}  Kg7 {[%clk 0:00:22]} 60. Kg4 {[%clk 0:00:13]}  Kh7 {[%clk 0:00:23]} 61. f5 {[%clk 0:00:14]}  Kg7 {[%clk 0:00:24]} 62. Kf4 {[%clk 0:00:14]}  Kh7 {[%clk 0:00:25]} 63. Ke5 {[%clk 0:00:15]}  Kg7 {[%clk 0:00:25]} 64. g6 {[%clk 0:00:14]}  Kh6 {[%clk 0:00:24]} 65. Kf6 {[%clk 0:00:13]}  Kh5 {[%clk 0:00:23]} 66. g7 {[%clk 0:00:13]} 1-0


[Site "https://www.chess.com"]

[Event "Titled Tuesday Blitz April 4 Early 2023"]
[White "Jovic, Stanoje"]
[Black "Arat, Ufuk Sezen"]
[WhiteFideId "905020"]
[BlackFideId "6309089"]
[WhiteElo "2236"]
[BlackElo "2289"]
[Result "0-1"]
[Round "07"]
[TimeControl "180+2"]
[Date "2023.04.04"]
[WhiteClock "0:00:06"]
[BlackClock "0:01:13"]

1. c4 {[%clk 0:03:00]}  Nf6 {[%clk 0:02:59]} 2. g3 {[%clk 0:03:00]}  g6 {[%clk 0:02:59]} 3. Bg2 {[%clk 0:03:01]}  c6 {[%clk 0:03:00]} 4. Nf3 {[%clk 0:02:59]}  Bg7 {[%clk 0:03:00]} 5. O-O {[%clk 0:02:59]}  O-O {[%clk 0:03:00]} 6. Nc3 {[%clk 0:02:59]}  d5 {[%clk 0:02:59]} 7. cxd5 {[%clk 0:03:00]}  cxd5 {[%clk 0:02:59]} 8. d4 {[%clk 0:03:00]}  Nc6 {[%clk 0:02:59]} 9. Ne5 {[%clk 0:03:00]}  Bf5 {[%clk 0:02:58]} 10. f4 {[%clk 0:02:58]}  Qb6 {[%clk 0:02:49]} 11. e3 {[%clk 0:02:57]}  e6 {[%clk 0:02:47]} 12. b3 {[%clk 0:02:56]}  Rac8 {[%clk 0:02:44]} 13. Ba3 {[%clk 0:02:54]}  Rfd8 {[%clk 0:02:41]} 14. Rc1 {[%clk 0:02:52]}  Qa6 {[%clk 0:02:41]} 15. Bb2 {[%clk 0:02:38]}  Nxe5 {[%clk 0:02:25]} 16. fxe5 {[%clk 0:02:34]}  Ng4 {[%clk 0:02:25]} 17. Qd2 {[%clk 0:01:46]}  Bh6 {[%clk 0:02:24]} 18. Rfe1 {[%clk 0:01:40]}  Qd3 {[%clk 0:02:24]} 19. Qxd3 {[%clk 0:01:33]}  Bxd3 {[%clk 0:02:25]} 20. Nd1 {[%clk 0:01:20]}  Rxc1 {[%clk 0:02:24]} 21. Bxc1 {[%clk 0:01:20]}  Rc8 {[%clk 0:02:25]} 22. Ba3 {[%clk 0:01:05]}  Rc2 {[%clk 0:02:26]} 23. h3 {[%clk 0:01:03]}  Rxa2 {[%clk 0:02:23]} 24. Be7 {[%clk 0:00:53]}  Re2 {[%clk 0:02:17]} 25. Rxe2 {[%clk 0:00:49]}  Bxe2 {[%clk 0:02:18]} 26. hxg4 {[%clk 0:00:48]}  Bxd1 {[%clk 0:02:17]} 27. g5 {[%clk 0:00:43]}  Bf8 {[%clk 0:02:17]} 28. Bxf8 {[%clk 0:00:43]}  Kxf8 {[%clk 0:02:18]} 29. b4 {[%clk 0:00:43]}  b6 {[%clk 0:02:18]} 30. Kf2 {[%clk 0:00:43]}  a5 {[%clk 0:02:18]} 31. Ke1 {[%clk 0:00:42]}  Bb3 {[%clk 0:02:16]} 32. bxa5 {[%clk 0:00:39]}  bxa5 {[%clk 0:02:17]} 33. Kd2 {[%clk 0:00:39]}  Kg7 {[%clk 0:02:14]} 34. Kc3 {[%clk 0:00:37]}  a4 {[%clk 0:02:13]} 35. Bf1 {[%clk 0:00:25]}  h6 {[%clk 0:02:12]} 36. gxh6+ {[%clk 0:00:25]}  Kxh6 {[%clk 0:02:13]} 37. Bb5 {[%clk 0:00:25]}  Kg5 {[%clk 0:01:49]} 38. Be8 {[%clk 0:00:25]}  f6 {[%clk 0:01:39]} 39. exf6 {[%clk 0:00:20]}  Kxf6 {[%clk 0:01:38]} 40. g4 {[%clk 0:00:17]}  Bd1 {[%clk 0:01:35]} 41. Kb4 {[%clk 0:00:14]}  Bxg4 {[%clk 0:01:34]} 42. Kxa4 {[%clk 0:00:14]}  Be2 {[%clk 0:01:35]} 43. Kb4 {[%clk 0:00:14]}  g5 {[%clk 0:01:35]} 44. Kc3 {[%clk 0:00:15]}  g4 {[%clk 0:01:35]} 45. Kd2 {[%clk 0:00:15]}  Bc4 {[%clk 0:01:31]} 46. Ke1 {[%clk 0:00:15]}  g3 {[%clk 0:01:16]} 47. Bd7 {[%clk 0:00:14]}  Kf5 {[%clk 0:01:15]} 48. Bc8 {[%clk 0:00:14]}  Ke4 {[%clk 0:01:15]} 49. Bxe6 {[%clk 0:00:14]}  Kxe3 {[%clk 0:01:15]} 50. Bh3 {[%clk 0:00:11]}  Kxd4 {[%clk 0:01:14]} 51. Kd2 {[%clk 0:00:07]}  Ke4 {[%clk 0:01:14]} 52. Bg2+ {[%clk 0:00:07]}  Kf4 {[%clk 0:01:14]} 53. Bh1 {[%clk 0:00:06]}  d4 {[%clk 0:01:12]} 54. Bg2 {[%clk 0:00:06]}  Ke5 {[%clk 0:01:13]} 0-1


[Site "https://www.chess.com"]

[Event "Titled Tuesday Blitz April 4 Early 2023"]
[White "Bas Mas, Jose Joaquin"]
[Black "Nugumanov, Bakhtiyar"]
[WhiteFideId "22219064"]
[BlackFideId "13701797"]
[WhiteElo "2233"]
[BlackElo "2209"]
[Result "1-0"]
[Round "07"]
[TimeControl "180+2"]
[Date "2023.04.04"]
[WhiteClock "0:01:23"]
[BlackClock "0:00:15"]

1. e4 {[%clk 0:03:00]}  d6 {[%clk 0:03:00]} 2. d4 {[%clk 0:03:00]}  Nf6 {[%clk 0:03:00]} 3. Nc3 {[%clk 0:03:00]}  e5 {[%clk 0:02:57]} 4. dxe5 {[%clk 0:02:53]}  dxe5 {[%clk 0:02:57]} 5. Qxd8+ {[%clk 0:02:53]}  Kxd8 {[%clk 0:02:58]} 6. Bc4 {[%clk 0:02:54]}  Ke8 {[%clk 0:02:58]} 7. f3 {[%clk 0:02:52]}  Bc5 {[%clk 0:02:51]} 8. Nge2 {[%clk 0:02:52]}  c6 {[%clk 0:02:48]} 9. Bg5 {[%clk 0:02:47]}  b5 {[%clk 0:02:47]} 10. Bb3 {[%clk 0:02:45]}  a5 {[%clk 0:02:47]} 11. a4 {[%clk 0:02:44]}  b4 {[%clk 0:02:47]} 12. Nd1 {[%clk 0:02:44]}  Nbd7 {[%clk 0:02:38]} 13. Bc4 {[%clk 0:02:40]}  h6 {[%clk 0:02:39]} 14. Be3 {[%clk 0:02:40]}  Ke7 {[%clk 0:02:27]} 15. h4 {[%clk 0:02:32]}  Bxe3 {[%clk 0:02:21]} 16. Nxe3 {[%clk 0:02:30]}  Nb6 {[%clk 0:02:21]} 17. b3 {[%clk 0:02:27]}  Be6 {[%clk 0:01:54]} 18. Bxe6 {[%clk 0:02:08]}  fxe6 {[%clk 0:01:55]} 19. Nc1 {[%clk 0:02:02]}  Nfd7 {[%clk 0:01:41]} 20. Nd3 {[%clk 0:02:01]}  c5 {[%clk 0:01:41]} 21. Ng4 {[%clk 0:02:01]}  c4 {[%clk 0:01:20]} 22. Ndxe5 {[%clk 0:02:00]}  cxb3 {[%clk 0:01:10]} 23. cxb3 {[%clk 0:02:00]}  Rac8 {[%clk 0:01:11]} 24. Ng6+ {[%clk 0:01:58]}  Kf7 {[%clk 0:00:54]} 25. Nxh8+ {[%clk 0:01:59]}  Rxh8 {[%clk 0:00:54]} 26. Ke2 {[%clk 0:01:56]}  h5 {[%clk 0:00:45]} 27. Ne3 {[%clk 0:01:54]}  Nc5 {[%clk 0:00:46]} 28. Rab1 {[%clk 0:01:46]}  Ke7 {[%clk 0:00:27]} 29. Rhc1 {[%clk 0:01:44]}  Nbd7 {[%clk 0:00:26]} 30. Nc4 {[%clk 0:01:28]}  Ra8 {[%clk 0:00:26]} 31. Ne5 {[%clk 0:01:28]}  Nxe5 {[%clk 0:00:15]} 32. Rxc5 {[%clk 0:01:27]}  Kf6 {[%clk 0:00:15]} 33. f4 {[%clk 0:01:23]} 1-0


[Site "https://www.chess.com"]

[Event "Titled Tuesday Blitz April 4 Early 2023"]
[White "Toktomushev, Teimur"]
[Black "Mikhaylova, Irina"]
[WhiteFideId "14176726"]
[BlackFideId "4109040"]
[WhiteElo "2116"]
[BlackElo "1975"]
[Result "1-0"]
[Round "07"]
[TimeControl "180+2"]
[Date "2023.04.04"]
[WhiteClock "0:00:05"]
[BlackClock "0:00:23"]

1. d4 {[%clk 0:02:59]}  Nf6 {[%clk 0:02:59]} 2. c4 {[%clk 0:02:59]}  g6 {[%clk 0:03:00]} 3. Nc3 {[%clk 0:02:59]}  d5 {[%clk 0:03:00]} 4. cxd5 {[%clk 0:03:00]}  Nxd5 {[%clk 0:03:01]} 5. e4 {[%clk 0:03:01]}  Nxc3 {[%clk 0:03:01]} 6. bxc3 {[%clk 0:03:01]}  Bg7 {[%clk 0:03:02]} 7. Be3 {[%clk 0:03:02]}  c5 {[%clk 0:03:02]} 8. Qd2 {[%clk 0:03:03]}  O-O {[%clk 0:03:02]} 9. Nf3 {[%clk 0:03:03]}  Qa5 {[%clk 0:03:00]} 10. Rc1 {[%clk 0:03:00]}  cxd4 {[%clk 0:02:58]} 11. cxd4 {[%clk 0:02:59]}  Qxd2+ {[%clk 0:02:57]} 12. Nxd2 {[%clk 0:03:00]}  b6 {[%clk 0:02:49]} 13. Be2 {[%clk 0:02:43]}  Ba6 {[%clk 0:02:49]} 14. f3 {[%clk 0:02:35]}  Rd8 {[%clk 0:02:36]} 15. Nb3 {[%clk 0:02:18]}  Bxe2 {[%clk 0:02:35]} 16. Kxe2 {[%clk 0:02:18]}  Na6 {[%clk 0:02:35]} 17. d5 {[%clk 0:02:08]}  Rac8 {[%clk 0:02:19]} 18. Nd4 {[%clk 0:01:58]}  Bxd4 {[%clk 0:01:56]} 19. Bxd4 {[%clk 0:01:59]}  f6 {[%clk 0:01:56]} 20. a3 {[%clk 0:01:51]}  Kf7 {[%clk 0:01:41]} 21. Ke3 {[%clk 0:01:34]}  e6 {[%clk 0:01:04]} 22. dxe6+ {[%clk 0:01:11]}  Kxe6 {[%clk 0:01:03]} 23. h4 {[%clk 0:01:04]}  Nc5 {[%clk 0:00:38]} 24. h5 {[%clk 0:00:26]}  Nb3 {[%clk 0:00:35]} 25. Rxc8 {[%clk 0:00:25]}  Rxc8 {[%clk 0:00:36]} 26. hxg6 {[%clk 0:00:25]}  hxg6 {[%clk 0:00:36]} 27. Rh6 {[%clk 0:00:18]}  Nxd4 {[%clk 0:00:27]} 28. Kxd4 {[%clk 0:00:19]}  g5 {[%clk 0:00:26]} 29. e5 {[%clk 0:00:08]}  Rf8 {[%clk 0:00:15]} 30. Rxf6+ {[%clk 0:00:07]}  Rxf6 {[%clk 0:00:15]} 31. exf6 {[%clk 0:00:08]}  Kxf6 {[%clk 0:00:16]} 32. Kd5 {[%clk 0:00:04]}  Kf5 {[%clk 0:00:15]} 33. g3 {[%clk 0:00:03]}  b5 {[%clk 0:00:16]} 34. Kc5 {[%clk 0:00:03]}  Ke5 {[%clk 0:00:16]} 35. Kxb5 {[%clk 0:00:03]}  Kd4 {[%clk 0:00:17]} 36. Ka6 {[%clk 0:00:02]}  Ke3 {[%clk 0:00:17]} 37. f4 {[%clk 0:00:03]}  g4 {[%clk 0:00:18]} 38. f5 {[%clk 0:00:02]}  Kf3 {[%clk 0:00:18]} 39. f6 {[%clk 0:00:03]}  Kxg3 {[%clk 0:00:19]} 40. f7 {[%clk 0:00:04]}  Kh2 {[%clk 0:00:19]} 41. f8=Q {[%clk 0:00:05]}  g3 {[%clk 0:00:20]} 42. Qh6+ {[%clk 0:00:05]}  Kg1 {[%clk 0:00:20]} 43. Qe3+ {[%clk 0:00:05]}  Kg2 {[%clk 0:00:20]} 44. Kxa7 {[%clk 0:00:05]}  Kh2 {[%clk 0:00:20]} 45. Kb6 {[%clk 0:00:05]}  g2 {[%clk 0:00:21]} 46. Qf2 {[%clk 0:00:03]}  Kh3 {[%clk 0:00:21]} 47. Qf3+ {[%clk 0:00:03]}  Kh2 {[%clk 0:00:21]} 48. Qf2 {[%clk 0:00:03]}  Kh3 {[%clk 0:00:22]} 49. Qxg2+ {[%clk 0:00:04]}  Kxg2 {[%clk 0:00:22]} 50. a4 {[%clk 0:00:04]}  Kf3 {[%clk 0:00:23]} 51. a5 {[%clk 0:00:05]} 1-0


[Site "https://www.chess.com"]

[Event "Titled Tuesday Blitz April 4 Early 2023"]
[White "Thiel, Thomas"]
[Black "Rian, Kapriaga"]
[WhiteFideId "4615964"]
[BlackFideId "7103263"]
[WhiteElo "2224"]
[BlackElo "2349"]
[Result "0-1"]
[Round "07"]
[TimeControl "180+2"]
[Date "2023.04.04"]
[WhiteClock "0:02:06"]
[BlackClock "0:01:51"]

1. e4 {[%clk 0:03:00]}  c6 {[%clk 0:02:21]} 2. d4 {[%clk 0:03:00]}  d5 {[%clk 0:02:21]} 3. exd5 {[%clk 0:03:00]}  cxd5 {[%clk 0:02:21]} 4. c4 {[%clk 0:03:00]}  Nf6 {[%clk 0:02:19]} 5. Nc3 {[%clk 0:03:00]}  g6 {[%clk 0:02:19]} 6. Qb3 {[%clk 0:02:57]}  Bg7 {[%clk 0:02:18]} 7. cxd5 {[%clk 0:02:57]}  O-O {[%clk 0:02:18]} 8. Be2 {[%clk 0:02:57]}  Nbd7 {[%clk 0:02:18]} 9. Nh3 {[%clk 0:02:55]}  Nb6 {[%clk 0:02:15]} 10. Nf4 {[%clk 0:02:53]}  Bf5 {[%clk 0:02:10]} 11. O-O {[%clk 0:02:49]}  Qd7 {[%clk 0:02:01]} 12. Bb5 {[%clk 0:02:39]}  Qd6 {[%clk 0:01:57]} 13. Re1 {[%clk 0:02:09]}  Rfd8 {[%clk 0:01:51]} 14. h3 {[%clk 0:02:08]}  g5 {[%clk 0:01:51]} 15. Nh5 {[%clk 0:02:06]} 0-1


[Site "https://www.chess.com"]

[Event "Titled Tuesday Blitz April 4 Early 2023"]
[White "Blokhin, Sofia"]
[Black "Averjanov, Alexey"]
[WhiteFideId "4508190"]
[BlackFideId "14109867"]
[WhiteElo "1994"]
[BlackElo "2670"]
[Result "0-1"]
[Round "07"]
[TimeControl "180+2"]
[Date "2023.04.04"]
[WhiteClock "0:00:11"]
[BlackClock "0:01:24"]

1. d4 {[%clk 0:03:00]}  d5 {[%clk 0:02:59]} 2. c4 {[%clk 0:02:59]}  dxc4 {[%clk 0:02:59]} 3. Nf3 {[%clk 0:02:54]}  Nf6 {[%clk 0:02:59]} 4. e3 {[%clk 0:02:51]}  e6 {[%clk 0:02:59]} 5. Bxc4 {[%clk 0:02:50]}  a6 {[%clk 0:02:59]} 6. O-O {[%clk 0:02:49]}  b5 {[%clk 0:02:59]} 7. Bd3 {[%clk 0:02:48]}  Bb7 {[%clk 0:02:59]} 8. Nc3 {[%clk 0:02:47]}  Nbd7 {[%clk 0:02:58]} 9. Re1 {[%clk 0:02:43]}  c5 {[%clk 0:02:58]} 10. Ne2 {[%clk 0:02:26]}  Be7 {[%clk 0:02:56]} 11. Ng3 {[%clk 0:02:19]}  O-O {[%clk 0:02:55]} 12. b3 {[%clk 0:02:16]}  Rc8 {[%clk 0:02:54]} 13. Bb2 {[%clk 0:02:15]}  Qb6 {[%clk 0:02:53]} 14. Ne5 {[%clk 0:02:07]}  Rfd8 {[%clk 0:02:51]} 15. Qe2 {[%clk 0:01:49]}  cxd4 {[%clk 0:02:45]} 16. Bxd4 {[%clk 0:01:46]}  Bc5 {[%clk 0:02:44]} 17. Bb2 {[%clk 0:01:40]}  Nxe5 {[%clk 0:02:40]} 18. Bxe5 {[%clk 0:01:39]}  Be7 {[%clk 0:02:37]} 19. Rac1 {[%clk 0:01:35]}  h6 {[%clk 0:02:35]} 20. Bxf6 {[%clk 0:01:24]}  Bxf6 {[%clk 0:02:35]} 21. Nh5 {[%clk 0:01:22]}  Be7 {[%clk 0:02:24]} 22. Qg4 {[%clk 0:01:18]}  Bf8 {[%clk 0:02:23]} 23. Bb1 {[%clk 0:01:04]}  Kh8 {[%clk 0:02:14]} 24. h3 {[%clk 0:01:03]}  Qd6 {[%clk 0:02:08]} 25. Nf4 {[%clk 0:00:59]}  Kg8 {[%clk 0:02:00]} 26. Rcd1 {[%clk 0:00:41]}  Qe5 {[%clk 0:01:56]} 27. Nd3 {[%clk 0:00:28]}  Qf6 {[%clk 0:01:53]} 28. e4 {[%clk 0:00:23]}  Rd4 {[%clk 0:01:50]} 29. e5 {[%clk 0:00:21]}  Rxg4 {[%clk 0:01:49]} 30. exf6 {[%clk 0:00:21]}  Rxg2+ {[%clk 0:01:48]} 31. Kf1 {[%clk 0:00:22]}  gxf6 {[%clk 0:01:42]} 32. Nf4 {[%clk 0:00:14]}  Rh2 {[%clk 0:01:35]} 33. Nh5 {[%clk 0:00:14]}  Bf3 {[%clk 0:01:25]} 34. Nxf6+ {[%clk 0:00:13]}  Kg7 {[%clk 0:01:25]} 35. Ng4 {[%clk 0:00:11]}  Rh1# {[%clk 0:01:24]} 0-1


[Site "https://www.chess.com"]